Cogmind - Beta 13 *** ADVENTURER MODE // 2024.05.20 @ 17:08:00 Player: Blade Result: Destroyed by D-53 Grenadier with Mini Grenade Launcher Performance ------------- Evolutions (1) 500 Regions Visited (4) 800 Robots Destroyed (25) 125 Value Destroyed (660) 660 Prototype IDs (1) 20 Alien Tech Used (0) 0 Bonus (2) 2 TOTAL SCORE: 2107 Bonus ------- High Alert Combat Kills 2 Cogmind --------- Core Integrity 0/400 Matter 157/300 Energy 99/100 System Corruption 0% Temperature Cool (6) Movement Core (150) Ox2 Location -9/Mines Parts ------- > --- POWER (1) -------- (None) > --- PROPULSION (2) --- (None) > --- UTILITY (4) ------ Small Storage Unit Targeting Computer > --- WEAPON (2) ------- Ripper > --- INVENTORY (8) ---- Experimental Sensor Array Improved Terrain Scanner Targeting Computer EM Pulse Cannon Rocket Launcher Peak State ------------ > --- POWER ------------ Ion Engine > --- PROPULSION ------- Aluminum Leg Aluminum Leg > --- UTILITY ---------- Small Storage Unit Experimental Sensor Array Targeting Computer > --- WEAPON ----------- Assault Rifle Rocket Launcher > --- INVENTORY -------- Light Ion Engine Wheel Flight Unit Small Laser Small Laser Grenade Launcher Ripper [Rating: 18] Favorites ----------- Power Ion Engine Engine Ion Engine Propulsion Aluminum Leg Leg Aluminum Leg Wheel Wheel Flight Unit Flight Unit Utility Small Storage Unit Device Experimental Sensor Array Storage Small Storage Unit Processor Targeting Computer Weapon Assault Rifle Energy Gun Small Laser Ballistic Gun Assault Rifle Launcher Rocket Launcher Slashing Weapon Ripper Build | -11 -10 -10 -9 -9 ------- Run | Yrd Mat Min Mat Min Slots Evolved 2 | . . . 2 . Power . | . . . . . Propulsion . | . . . . . Utility 2 | . . . 2 . Weapon . | . . . . . Parts Attached 13 | . 1 2 6 4 Power 1 | . . . 1 . Engine 1 | . . . 1 . Core . | . . . . . Reactor . | . . . . . Propulsion 3 | . . . 1 2 Treads . | . . . . . Leg . | . . . . . Wheel 1 | . . . 1 . Hover . | . . . . . Flight 2 | . . . . 2 Utility 2 | . 1 . 1 . Device 1 | . . . 1 . Storage . | . . . . . Processor 1 | . 1 . . . Hackware . | . . . . . Protection . | . . . . . Artifact . | . . . . . Weapon 7 | . . 2 3 2 Energy Gun . | . . . . . Energy Cannon . | . . . . . Ballistic Gun 1 | . . 1 . . Ballistic Cannon . | . . . . . Launcher 5 | . . 1 3 1 Special Weapon . | . . . . . Impact Weapon . | . . . . . Slashing Weapon 1 | . . . . 1 Piercing Weapon . | . . . . . Special Melee Weapon . | . . . . . Unidentified Prototypes 1 | . . . 1 . Parts Lost 7 | . . . 3 4 Power 2 | . . . 1 1 Propulsion 3 | . . . 1 2 Utility . | . . . . . Weapon 2 | . . . 1 1 Highest Loss Streak 4 | . . . 2 4 To Critical Strikes . | . . . . . Average Slot Usage (%) 90 | . 93 100 88 50 Engine 12 | . 14 14 11 7 Leg 23 | . 28 28 17 . Flight 1 | . . . . 13 Device 1 | . . . 11 1 Storage 13 | . 14 14 11 11 Processor 11 | . 7 14 11 11 Energy Gun 10 | . 14 14 1 . Ballistic Gun 11 | . 14 14 11 . Launcher 1 | . . . 9 2 Naked Turns . | . . . . . Heaviest Build 17 | 13 13 13 17 13 Greatest Support 20 | 20 20 20 20 8 Greatest Overweight (x) 3 | . . . 1 3 Average Overweight (x) . | . . . . . Largest Inventory Capacity 8 | 8 8 8 8 8 Average Capacity 8 | 8 8 8 8 8 Most Carried 8 | 6 7 8 8 8 Average Carried 6 | 6 6 6 6 6 Final Capacity 8 | 8 8 8 8 8 Final Carried 7 | 6 7 7 7 5 Class Distribution -------------------- 100% | Mutant Dominant Class ---------------- Mutant | -10/Materials Mutant | -10/Mines Mutant | -9/Materials Mutant | -9/Mines Resources | -11 -10 -10 -9 -9 ----------- Run | Yrd Mat Min Mat Min Matter Collected 434 | 200 49 41 62 82 Remotely . | . . . . . Salvage Created 642 | . 210 126 214 92 Parts 48 | . 12 8 24 4 Haulers Intercepted 1 | . 1 . . . Recyclers Shooed 1 | . 1 . . . Parts Field Recycled . | . . . . . Retrieved Matter . | . . . . . Parts Self-Destructed . | . . . . . Prevented . | . . . . . Kills | -11 -10 -10 -9 -9 ------- Run | Yrd Mat Min Mat Min Combat Hostiles Destroyed 27 | . 4 3 13 7 Melee 3 | . . . . 3 Guns 11 | . 4 3 4 . AOE 13 | . . . 9 4 Classes Destroyed 6 | . 2 . 3 1 Worker 1 | . . . 1 . Builder 1 | . . . 1 . Hauler 1 | . 1 . . . Swarmer 7 | . . . 7 . Grunt 15 | . 4 3 6 2 Assembled 5 | . . . . 5 Best Kill Streak 15 | . 3 2 15 5 Combat Bots Only 13 | . 2 2 13 5 Max Kills in Single Turn 3 | . 1 2 3 2 Gunslinging 1 | . . 1 . . Exploded 3 | . . . 3 2 Melee 1 | . . . . 1 Uniques/NPCs Destroyed . | . . . . . Combat | -11 -10 -10 -9 -9 -------- Run | Yrd Mat Min Mat Min Hostile Shots Fired 174 | . 23 12 87 52 Missed 60 | . 11 2 30 17 Damage Taken 1119 | . 89 104 485 441 Core 408 | . . . 114 294 Absorbed by Shields . | . . . . . Ignored by Resistances 335 | . 27 33 147 128 Core Remaining (%) 100 | 100 . 100 . . Volleys Fired 44 | . 13 7 19 5 Largest 2 | . 2 2 2 1 Hottest 60 | . 60 60 53 30 Shots Fired 75 | . 26 14 30 5 Gun 59 | . 26 14 19 . Cannon . | . . . . . Launcher 16 | . . . 11 5 Special . | . . . . . Kinetic 39 | . 13 7 19 . Thermal 20 | . 13 7 . . Explosive 16 | . . . 11 5 Electromagnetic . | . . . . . Robot Hit Streak 21 | . 8 21 8 6 Robot Miss Streak 2 | . 2 . 1 . Penetration Max . | . . . . . Secondary Targets 1 | . . 1 . . Max Gunslinging Chain 1 | . . 1 . . Shots Hit Robots 61 | . 19 14 19 9 Core Hits 48 | . 11 6 19 12 Critical Kills . | . . . . . Critical Parts Destroyed . | . . . . . Critical Strikes 1 | . . . . 1 Sever 1 | . . . . 1 Melee Attacks 7 | . . . . 7 Impact . | . . . . . Slashing 7 | . . . . 7 Piercing . | . . . . . Sneak Attacks . | . . . . . Combat Hostiles . | . . . . . Follow-up Attacks . | . . . . . Damage Inflicted 1905 | . 230 174 941 560 Guns 567 | . 225 174 168 . Cannons . | . . . . . Explosions 1035 | . . . 771 264 Melee 296 | . . . . 296 Ramming 7 | . 5 . 2 . Kinetic 355 | . 95 92 168 . Thermal 212 | . 130 82 . . Explosive 1035 | . . . 771 264 Electromagnetic . | . . . . . Impact . | . . . . . Slashing 296 | . . . . 296 Piercing . | . . . . . Highest Corruption . | . . . . . Average Corruption . | . . . . . Corruption Purged . | . . . . . Corruption Blocked . | . . . . . Overload Shots . | . . . . . Overflow Damage 11 | . . . 11 . Projectiles . | . . . . . Explosions 11 | . . . 11 . Melee . | . . . . . Knockbacks . | . . . . . Impact . | . . . . . Kinetic . | . . . . . Secondary . | . . . . . Self-Inflicted Damage 26 | . . . 2 24 Shots 2 | . . . 1 1 Rammed 1 | . . . 1 . Targets Rammed 3 | . 2 . 1 . Kicked 2 | . 2 . . . Crushed . | . . . . . Highest Temperature 75 | . 9 75 3 . Average Temperature 21 | . 6 38 3 . Received Heat Transfer 336 | . 21 93 114 108 Siege Activations . | . . . . . Robots Corrupted . | . . . . . Combat Hostiles . | . . . . . Parts Fried . | . . . . . Impact Corruptions . | . . . . . Robots Melted . | . . . . . Combat Hostiles . | . . . . . Parts Melted . | . . . . . Heat Transferred 475 | . 300 175 . . Parts Sabotaged . | . . . . . Parts Stolen . | . . . . . Parts Stripped . | . . . . . Power Chain Reactions . | . . . . . Alert | -11 -10 -10 -9 -9 ------- Run | Yrd Mat Min Mat Min Peak Influence 478 | . 183 109 478 196 Initial 154 | . . 59 14 154 Average 108 | . 75 67 301 152 Maximum Alert Level 2 | . . . 2 . Low Security (%) 91 | 100 100 100 34 100 Level 1 1 | . . . 12 . Level 2 7 | . . . 53 . Level 3 . | . . . . . Level 4 . | . . . . . Level 5 . | . . . . . High Security . | . . . . . Max Security . | . . . . . Squads Dispatched 2 | . . 1 1 . Investigation 1 | . . 1 . . Extermination . | . . . . . Reinforcement 1 | . . . 1 . Assault . | . . . . . Garrison . | . . . . . Intercept . | . . . . . Searches Triggered . | . . . . . Construction Impeded . | . . . . . Haulers Reinforced . | . . . . . Active Scanning Responses . | . . . . . Cargo Convoy Interrupts . | . . . . . Stealth | -11 -10 -10 -9 -9 --------- Run | Yrd Mat Min Mat Min Distress Signals 3 | . 1 . 2 . Communications Jammed . | . . . . . Distress Signals . | . . . . . Times Spotted 48 | . 12 3 19 14 Peak Tracking Total 7 | . 6 2 6 7 Tactical Retreats 4 | . 1 . 2 1 Traps | -11 -10 -10 -9 -9 ------- Run | Yrd Mat Min Mat Min Traps Triggered . | . . . . . Indirectly . | . . . . . Trap Hack Attempts . | . . . . . Triggered . | . . . . . Disarmed . | . . . . . Reprogrammed . | . . . . . Reused . | . . . . . Traps Extracted . | . . . . . Installed . | . . . . . Triggered . | . . . . . Machines | -11 -10 -10 -9 -9 ---------- Run | Yrd Mat Min Mat Min Machines Disabled 2 | . . . 2 . Max in Single Turn 1 | . . . 1 . Machines Repaired . | . . . . . Machines Dismantled . | . . . . . Machines Sabotaged . | . . . . . Overloaded Fab Kills . | . . . . . Hacking | -11 -10 -10 -9 -9 --------- Run | Yrd Mat Min Mat Min Machines Accessed 4 | . 3 1 . . Terminals 4 | . 3 1 . . Fabricators . | . . . . . Repair Stations . | . . . . . Recycling Units . | . . . . . Scanalyzers . | . . . . . Garrison Access . | . . . . . Total Hacks 14 | . 11 3 . . Successful 8 | . 7 1 . . Failed 6 | . 4 2 . . Catastrophic 1 | . 1 . . . Database Lockouts . | . . . . . Manual 10 | . 9 1 . . Terminals 14 | . 11 3 . . Fabricators . | . . . . . Repair Stations . | . . . . . Recycling Units . | . . . . . Scanalyzers . | . . . . . Garrison Access . | . . . . . Terminal Hacks 6 | . 5 1 . . Robot Analysis 2 | . 2 . . . Alert Level 1 | . 1 . . . Patrol Status 1 | . 1 . . . Hauler Manifests 1 | . 1 . . . Zone Layout 1 | . . 1 . . Fabricator Hacks . | . . . . . Repair Station Hacks . | . . . . . Recycling Unit Hacks . | . . . . . Scanalyzer . | . . . . . Garrison Access Hacks . | . . . . . Unauthorized Hacks 2 | . 2 . . . Terminals 2 | . 2 . . . Track 1 | . 1 . . . Assimilate 1 | . 1 . . . Fabricators . | . . . . . Repair Stations . | . . . . . Recycling Units . | . . . . . Scanalyzers . | . . . . . Garrison Access . | . . . . . Data Cores Recovered . | . . . . . Used . | . . . . . Hacking Detections 4 | . 3 1 . . Full Trace Events 1 | . . 1 . . Feedback Events . | . . . . . Feedback Blocked . | . . . . . Robot Schematics Acquired . | . . . . . Robots Built . | . . . . . Authchips . | . . . . . Time . | . . . . . Total Robot Build Rating . | . . . . . Part Schematics Acquired . | . . . . . Parts Built . | . . . . . Authchips . | . . . . . Time . | . . . . . Total Part Build Rating . | . . . . . Parts Repaired . | . . . . . Time . | . . . . . Parts Recycled . | . . . . . Recycled Matter . | . . . . . Retrieved Matter . | . . . . . Retrieved Components . | . . . . . Parts Scanalyzed . | . . . . . Part Schematics Acquired . | . . . . . Parts Damaged . | . . . . . Bothacking | -11 -10 -10 -9 -9 ------------ Run | Yrd Mat Min Mat Min Used RIF Installer . | . . . . . Robots Hacked . | . . . . . Non-combat . | . . . . . Combat . | . . . . . Robot Hacks Applied . | . . . . . Relay Couplers Released . | . . . . . Fabnet Peak Effective % . | . . . . . Robots Rewired . | . . . . . Allies Hacked . | . . . . . Hacks Repelled . | . . . . . Allies | -11 -10 -10 -9 -9 -------- Run | Yrd Mat Min Mat Min Total Allies 2 | . . . . 2 Largest Group 2 | . . . . 2 Highest-Rated Group 50 | . . . . 50 Highest-Rated Ally 31 | . . . . 31 Total Orders . | . . . . . Ally Attacks 3 | . . . . 3 Total Damage 21 | . . . . 21 Kills . | . . . . . Allies Corrupted . | . . . . . Allies Melted . | . . . . . Intel | -11 -10 -10 -9 -9 ------- Run | Yrd Mat Min Mat Min Robot Analysis Total 2 | . 2 . . . Derelict Logs Recovered 2 | . . 1 . 1 Drone Launches . | . . . . . Drone Recoveries . | . . . . . Exploration | -11 -10 -10 -9 -9 ------------- Run | Yrd Mat Min Mat Min Turns Passed 1543 | 40 393 719 205 186 Spaces Moved 1341 | 34 278 576 134 319 Core 28 | . . . . 28 Treads . | . . . . . Legs 941 | 34 278 576 53 . Wheels 81 | . . . 81 . Hover . | . . . . . Flight 291 | . . . . 291 Fastest Speed 34 | 120 120 120 95 34 Average Speed 101 | 120 120 120 105 47 Slowest Speed 200 | 120 120 120 190 200 Overloaded Moves . | . . . . . Propulsion Burnouts . | . . . . . Robots Hopped 4 | . . . . 4 Cave-ins Triggered . | . . . . . Exploration Rate (%) 40 | 4 40 82 20 58 Regions Visited 4 Branch Regions 2 Pre-discovered Areas . | . . . . . Known Exits Taken . | . . . . . Unknown Exits Taken 4 | 1 1 1 1 . Scrap Searched 1 | . . 1 . . Spaces Dug 4 | . . . 4 . Terrain Destroyed 99 | . . . 62 37 Melee . | . . . . . Projectile . | . . . . . AOE 99 | . . . 62 37 Terrain Rammed . | . . . . . Walls Destroyed . | . . . . . Machines Disabled . | . . . . . Actions | -11 -10 -10 -9 -9 --------- Run | Yrd Mat Min Mat Min Total 1435 | 33 310 590 166 336 Wait 16 | . 16 . . . Move 1329 | 33 277 575 133 311 Hop 4 | . . . . 4 Pick Up 10 | . 1 3 5 1 Fast Attach 1 | . 1 . . . Attach 5 | . . . 3 2 Detach 1 | . . . . 1 Swap 7 | . . 2 3 2 Drop 8 | . . 3 2 3 Fire 44 | . 13 7 19 5 Melee 7 | . . . . 7 Ram 1 | . . . 1 . Kick 2 | . 2 . . . Crush . | . . . . . Escape Stasis . | . . . . . Rewire . | . . . . . Trap . | . . . . . Miscellaneous . | . . . . . Route ------- -11/Scrapyard -10/Materials (discovered 2 exits: [*Mat] / *Min) -10/Mines -9/Materials (discovered 2 exits: Mat / [*Min]) -9/Mines (discovered 1 exit: *Mat) History --------- Turn | Location | Event 1 | -11/Scrapyard | Discovered new exit (range 3) 41 | -11/Scrapyard | Entered Materials 258 | -10/Materials | Discovered new exit (range 11) 305 | -10/Materials | Build established: Mutant 358 | -10/Materials | Discovered new exit (range 6) 434 | -10/Materials | Entered Mines 441 | -10/Mines | Received a Rocket Launcher from a helpful Derelict 543 | -10/Mines | A weapon hastily lodged in a ceiling crevice suddenly fell to the ground 665 | -10/Mines | Discovered new exit (range 5) 702 | -10/Mines | Learned location of 1 exit from Materials 787 | -10/Mines | Found a damaged Exp. Sensor Array with a note attached 790 | -10/Mines | Found Prototype Device 1153 | -10/Mines | Entered Materials 1153 | -9/Materials | Evolved 2 slots: Utility x2 1153 | -9/Materials | Identified Exp. Sensor Array 1154 | -9/Materials | Identified exit to Materials 1270 | -9/Materials | Destroyed 13 combat bots 1333 | -9/Materials | Discovered new exit (range 7) 1358 | -9/Materials | Entered Mines 1460 | -9/Mines | Assembled infested the area 1495 | -9/Mines | Core integrity fell below 50% 1527 | -9/Mines | Lost 4 parts (1p2n1w) 1543 | -9/Mines | Core integrity fell below 20% 1544 | -9/Mines | Destroyed by D-53 Grenadier with Mini Grenade Launcher Last Messages --------------- 01480_ Lgt. Ion Engine destroyed. 01481_ as-87698 destroyed. 01494_ The unstable cave ceiling collapses. 01496_ Grenade Launcher destroyed. 01500_ G-34 Mercenary Aluminum Leg severed. 01503_ K-01 Serf collects debris. 01507_ G-34 Mercenary destroyed. 01509_ Acquired 38 matter. 01517_ K-01 Serf collects debris. 01519_ G-47 Trooper destroyed. 01520_ K-01 Serf collects debris. 01521_ Acquired 44 matter. 01525_ K-01 Serf cleans the Core Extractor. 01528_ K-01 Serf cleans the Laser Drill. 01529_ K-01 Serf cleans the Core Extractor. 01533_ K-01 Serf collects debris. 01533_ K-01 Serf cleans the Laser Drill. 01541_ U-05 Engineer lays Concrete. 01543_ U-05 Engineer builds a Wall. 01544_ U-05 Engineer destroyed. Map ----- +----------------------------------------------------+ | ????? ??????????????????????????????????? | | ??### ??????????????????????????????????? | | ??# ??????????????????????????????????? | | ### ????????????????????????????????#?? | | ????????????????????????????????# | | #????????????????????????????????# | | ???????????????????????????????# | | ##???????????????????????????# | | #???????????????????????????? | | %$ ??#########?????????????????# ## ? | | # ??# #????????????????????? | | #??# """ """ #????????????????????? | | # #??# """ """ #????????????????????? | | # ??# """ """ #????????????????????# | | # ###* #????????????????????# | | ???# = !""" """ #?????????????### #### | | ??## ###=""" """ #?????????????? | | ??# ##?# """ """ #????????????????????# | | ??# #?#[ #????????????????????# | | ??# #?# #??????????????####### | | ??# ########g###???#######????# | | ?? ## ???# ####### #????# | | ?## # #?# """ #????# """ | | ??# # #### """ #????# """ | | ??## ## #??# """ ###### """ | | ???#### %d |@ #??# | | ??????## d * #??# ###### | | ???????## ## # #??#######????# | | ???###### # # #####?????????????### #### | | ???# # ????????????????????# #??? | | ???# #### #?????????????????????# #??? | | ???# #??# ##????????????????????# #??? | | ???# """ #### ##?####??????????????# #??# | | ???# """ ### ##?????????????# #### | | ???# """ ### ## < ########??????# | | ???# #?# ## ???????# ### | | ???#### #### ## #????????????# #?# | | ??????# ### #????????????# #?## | | ??????# #???????????## #??# | | ??????# #?????????### #### | | ??????##### #????????## | | ??????????## #???????## """ ### | | ???????????### ##??????## """ ### | | ?????????????### ##?????? """ | | ???????????????# #####??????# ## ## | | ???????????????# #??????????# ??## #? | | ??????????????? #??????????#????## ##? | | ??????????????? ????????????????## ##?? | | ??????????????######????????????????####??? | | ??????????????????????????????????????????? | +----------------------------------------------------+ Best States ------------- Heat Dissipation 28 Energy Generation 10 Energy Capacity 250 Matter Stores 300 Matter Capacity 300 Sight Range 16 Robot Scan Range 20 Terrain Scan Density 10 Resistance: KI 20 Resistance: TH 20 Resistance: EX 20 Resistance: EM 20 Resistance: I 20 Resistance: S 20 Resistance: P 20 Evasion (%) 63 Targeting Accuracy 5 Offensive Hacking 10 Item Schematics ----------------- None Robot Schematics ------------------ None Fabricated ------------ Nothing Alien Tech Used ----------------- None Achievements -------------- root@ Challenges ------------ None Game ------ Seed GreatSlugRedirector Manual? 0 Play Time 00:22:27 Cumulative 27.2 hours Start 2024.05.20 @ 16:40:07 End 2024.05.20 @ 17:08:00 Sessions 1 Manual Loads 0 Difficulty Adventurer Special Mode None Game No. 37 Rogue 0 Adventurer 32 Explorer 5 Win Type - Total 1 Types 1/0/0/0/0/0/0/0/0 Lore% 21 Gallery% 33 Achievement% 28 Wizard Run 0 Options --------- Layout 1 ASCII 0 Keyboard 0 Movement Arrows Keybinds 0 Fullscreen 2 Font 24/Terminus Map View 50x35 Zoom Use 0% Tactical HUD 1 Map Filters NONE Filters NONE Steam 1 RUN: 1ca1e16a-2a2c-42e1-b6fc-3684e77d1b81